Cogmind - Beta 16 @@@ ROGUE MODE // 2025.11.12 @ 20:01:53 Player: Nori Result: Destroyed by G-67 Veteran with Field Laser Performance ------------- Evolutions (6) 3000 Regions Visited (12) 2400 Robots Destroyed (13) 65 Value Destroyed (289) 289 Prototype IDs (24) 480 Alien Tech Used (0) 0 Bonus (443) 443 TOTAL SCORE: 6677 Bonus ------- Follower Combat Kills 157 Aligned with FarCom 300 Friendly Fire -14 Cogmind --------- Core Integrity 0/1150 Matter 255/300 Energy 100/100 System Corruption 5% Temperature Cool (0) Movement Core (100) Ox1 Location -4/Upper Caves Parts ------- > --- POWER (2) -------- (None) > --- PROPULSION (5) --- (None) > --- UTILITY (10) ----- (None) > --- WEAPON (2) ------- Railgun > --- INVENTORY (5) ---- Advanced ECM Suite Advanced Reaction Control System Improved Force Field Peak State ------------ > --- POWER ------------ Micro Nuclear Core Micro Fission Core > --- PROPULSION ------- Field Propulsion Drive Nuclear Pulse Array Impulse Thruster > --- UTILITY ---------- Advanced Reaction Control System Improved Cloaking Device > --- WEAPON ----------- Railgun > --- INVENTORY -------- Advanced Cryofiber Web Advanced ECM Suite Improved Force Field Railgun [Rating: 58] Favorites ----------- Power Micro Nuclear Core Engine Light Ion Engine Power Core Micro Nuclear Core Propulsion Hover Unit Wheel Wheel Hover Unit Hover Unit Flight Unit Cesium-ion Thruster Utility Weight Redist. System Device Weight Redist. System Storage Small Storage Unit Processor Advanced Targeting Computer Protection Improved Propulsion Shielding Weapon Gauss Rifle Energy Gun EM Shotgun Ballistic Gun Gauss Rifle Launcher Rocket Launcher Build | -11 -10 -9 -9 -9 -8 -8 -7 -6 -6 -5 -4 -4 ------- Run | Yrd Mat Mat Min Exi Min Mat Fac Fac Ext Fac Fac Upp Slots Evolved 12 | . . 2 . . . 2 2 2 . 2 2 . Power 1 | . . . . . . . 1 . . . . . Propulsion 3 | . . 1 . . . . 1 . . . 1 . Utility 8 | . . 1 . . . 2 . 2 . 2 1 . Weapon . | . . . . . . . . . . . . . Parts Attached 49 | 6 2 6 3 . 1 7 3 . 5 7 7 2 Power 6 | 1 . . 1 . . 1 . . . 3 . . Engine 3 | 1 . . 1 . . . . . . 1 . . Core 3 | . . . . . . 1 . . . 2 . . Reactor . | . . . . . . . . . . . . . Propulsion 14 | 2 2 2 . . 1 1 1 . 1 1 3 . Treads . | . . . . . . . . . . . . . Leg . | . . . . . . . . . . . . . Wheel 2 | 2 . . . . . . . . . . . . Hover 5 | . 2 2 . . 1 . . . . . . . Flight 7 | . . . . . . 1 1 . 1 1 3 . Utility 19 | 1 . 2 . . . 5 1 . 4 3 2 1 Device 8 | . . 1 . . . 1 . . 2 1 2 1 Storage 2 | 1 . . . . . 1 . . . . . . Processor 5 | . . 1 . . . 1 1 . 1 1 . . Hackware . | . . . . . . . . . . . . . Protection 4 | . . . . . . 2 . . 1 1 . . Artifact . | . . . . . . . . . . . . . Weapon 10 | 2 . 2 2 . . . 1 . . . 2 1 Energy Gun 3 | 2 . . 1 . . . . . . . . . Energy Cannon . | . . . . . . . . . . . . . Ballistic Gun 4 | . . . . . . . 1 . . . 2 1 Ballistic Cannon . | . . . . . . . . . . . . . Launcher 3 | . . 2 1 . . . . . . . . . Special Weapon . | . . . . . . . . . . . . . Impact Weapon . | . . . . . . . . . . . . . Slashing Weapon . | . . . . . . . . . . . . . Piercing Weapon . | . . . . . . . . . . . . . Special Melee Weapon . | . . . . . . . . . . . . . Unidentified Prototypes 1 | . . . . . . . . . . 1 . . Parts Lost 22 | . . 3 1 . . 4 . . 3 6 4 1 Power 2 | . . . 1 . . . . . . 1 . . Propulsion 10 | . . 2 . . . 3 . . 1 1 3 . Utility 7 | . . . . . . . . . 2 3 1 1 Weapon 3 | . . 1 . . . 1 . . . 1 . . Highest Loss Streak 4 | . . 2 2 . . 4 . . 3 2 2 1 To Critical Strikes . | . . . . . . . . . . . . . Average Backups 4 | 1 6 6 5 5 6 5 4 5 1 2 3 3 Power . | . 1 1 . . . . 1 1 1 1 . . Propulsion . | . 1 . . . . . . 1 . . . . Utility 1 | . . . 1 1 1 . 2 3 . . 2 3 Weapon 1 | . 3 4 3 3 3 2 . . . . . . Tool/Special . | . . . . . . . . . . . . . Unused Backups 12 | . 3 1 . . . 2 5 . . . . 1 Power 1 | . . 1 . . . . . . . . . . Propulsion 2 | . 2 . . . . . . . . . . . Utility 3 | . . . . . . . 2 . . . . 1 Weapon 4 | . 1 . . . . 1 2 . . . . . Tool/Special 2 | . . . . . . 1 1 . . . . . Average Slot Usage (%) 59 | . 85 74 84 88 89 74 58 53 71 39 20 4 Engine 4 | . 14 11 11 11 11 7 . . . . . . Core 3 | . . . . . . 1 7 6 6 3 5 . Hover 8 | . 19 28 22 22 23 15 . . . . . . Flight 6 | . . . . . . 2 11 13 17 6 8 . Device 10 | . . 2 11 11 11 11 15 13 21 7 3 3 Storage 4 | . 14 11 11 11 11 5 . . . . . . Processor 9 | . . 3 11 11 11 11 15 13 13 13 . . Protection 1 | . . . . . . 9 2 . 4 4 . . Energy Gun 4 | . 28 17 11 11 11 4 . . . . . . Ballistic Gun 2 | . . . . . . . 4 6 6 1 3 . Launcher 2 | . . 2 7 11 11 5 . . . . . . Peak Build Rating 58 | 6 7 14 13 14 16 21 30 26 38 41 58 15 Average Rating 21 | 4 6 8 12 13 14 16 24 26 34 25 31 9 On Entrance 13 | . 6 7 10 13 14 16 21 26 26 30 1 3 Avg Prop Armor Cover (%) . | . . . . . . . . . . . . . Naked Turns 36 | . . . . . . . . . . 6 17 13 Heaviest Build 23 | 12 12 12 15 15 15 23 14 11 15 14 21 7 Greatest Support 27 | 26 26 18 18 18 25 25 15 15 20 16 27 3 Greatest Overweight (x) 2 | . . . . . . 1 . . . . 1 2 Average Overweight (x) . | . . . . . . . . . . . . . Largest Inventory Capacity 10 | 8 8 8 8 8 8 10 10 5 5 5 5 5 Average Capacity 6 | 7 8 8 8 8 8 7 5 5 5 5 5 5 Most Carried 8 | 4 8 8 7 6 7 6 7 5 5 4 5 5 Average Carried 4 | 2 6 6 5 5 6 5 4 5 1 2 3 3 Final Capacity 8 | 8 8 8 8 8 8 5 5 5 5 5 5 5 Final Carried 7 | 4 7 7 5 6 6 5 5 5 1 3 5 3 Class Distribution -------------------- 58% | Mutant 41% | Scout Dominant Class ---------------- Mutant | -10/Materials Mutant | -9/Materials Mutant | -9/Mines Mutant | -9/Exiles Mutant | -8/Mines Mutant | -8/Materials Scout | -7/Factory Scout | -6/Factory Scout | -6/Extension Scout | -5/Factory Mutant | -4/Factory Mutant | -4/Upper Caves Resources | -11 -10 -9 -9 -9 -8 -8 -7 -6 -6 -5 -4 -4 ----------- Run | Yrd Mat Mat Min Exi Min Mat Fac Fac Ext Fac Fac Upp Matter Collected 785 | 240 40 . 43 . . . . . 345 . . 117 Remotely . | . . . . . . . . . . . . . Salvage Created 296 | . 60 105 39 . . 53 . . 39 . . . Parts 23 | . 3 11 6 . . 2 . . 1 . . . Haulers Intercepted 1 | . 1 . . . . . . . . . . . Recyclers Shooed . | . . . . . . . . . . . . . Parts Field Recycled . | . . . . . . . . . . . . . Retrieved Matter . | . . . . . . . . . . . . . Parts Self-Destructed . | . . . . . . . . . . . . . Prevented . | . . . . . . . . . . . . . Parts Restored . | . . . . . . . . . . . . . Kills | -11 -10 -9 -9 -9 -8 -8 -7 -6 -6 -5 -4 -4 ------- Run | Yrd Mat Mat Min Exi Min Mat Fac Fac Ext Fac Fac Upp Combat Hostiles Destroyed 12 | . . 4 5 . . 3 . . . . . . Guns 4 | . . 3 1 . . . . . . . . . AOE 8 | . . 1 4 . . 3 . . . . . . Classes Destroyed 8 | . 1 2 2 . . 2 . . 1 . . . Tunneler 1 | . . . 1 . . . . . . . . . Hauler 1 | . 1 . . . . . . . . . . . Watcher 1 | . . . . . . . . . 1 . . . Swarmer 6 | . . 3 3 . . . . . . . . . Grunt 2 | . . . . . . 2 . . . . . . Brawler 1 | . . . . . . 1 . . . . . . Sentry 1 | . . 1 . . . . . . . . . . Assembled 2 | . . . 2 . . . . . . . . . Best Kill Streak 4 | . 1 3 4 . . 3 . . 1 . . . Combat Bots Only 3 | . . 3 3 . . 3 . . . . . . Max Kills in Single Turn 2 | . 1 1 2 . . 2 . . 1 . . . Gunslinging . | . . . . . . . . . . . . . Exploded 2 | . . 1 2 . . 2 . . . . . . Melee . | . . . . . . . . . . . . . Uniques/NPCs Destroyed . | . . . . . . . . . . . . . Combat | -11 -10 -9 -9 -9 -8 -8 -7 -6 -6 -5 -4 -4 -------- Run | Yrd Mat Mat Min Exi Min Mat Fac Fac Ext Fac Fac Upp Hostile Shots Fired 460 | . 7 35 22 . . 33 29 2 48 109 120 55 Missed 231 | . 2 13 12 . . 17 19 1 26 52 68 21 Hits 229 | . 5 22 10 . . 16 10 1 22 57 52 34 Melee 13 | . . . . . . . . . . 13 . . Projectile 216 | . 5 22 10 . . 16 10 1 22 44 52 34 AOE 5 | . . . . . . . . . . 4 1 . Critical Strikes 14 | . . 1 . . . 2 . . 1 8 1 1 Actively Blocked 2 | . . . . . . . . . 1 1 . . Damage Taken 4240 | . 57 343 118 . . 240 101 23 253 1286 1232 587 Core 2486 | . 21 169 15 . . 43 42 . 45 986 768 397 Absorbed by Shields 55 | . . . . . . . . . 22 . 33 . Redirected to Shielding 75 | . . . . . . . . . 34 41 . . Core Remaining (%) 75 | 100 91 . . . 54 92 94 . 94 1 . . Volleys Fired 38 | . 6 7 7 . . 7 . . 3 . . 8 Largest 2 | . 2 2 2 . . 1 . . 1 . . 1 Hottest 80 | . 80 80 78 . . 33 . . 28 . . 35 Shots Fired 50 | . 12 10 10 . . 7 . . 3 . . 8 Gun 34 | . 12 8 3 . . . . . 3 . . 8 Cannon . | . . . . . . . . . . . . . Launcher 16 | . . 2 7 . . 7 . . . . . . Special . | . . . . . . . . . . . . . Kinetic 11 | . . . . . . . . . 3 . . 8 Thermal . | . . . . . . . . . . . . . Explosive 16 | . . 2 7 . . 7 . . . . . . Electromagnetic 23 | . 12 8 3 . . . . . . . . . Robot Hit Streak 5 | . 4 4 2 . . 2 . . 4 . . 5 Robot Miss Streak 3 | . 3 3 2 . . 3 . . 1 . . 2 Penetration Max . | . . . . . . . . . . . . . Secondary Targets . | . . . . . . . . . . . . . Shots Hit Robots 28 | . 6 6 4 . . 4 . . 2 . . 6 Core Hits 38 | . 3 7 8 . . 16 . . 2 . . 2 Critical Kills . | . . . . . . . . . . . . . Critical Parts Destroyed 1 | . . . . . . . . . . . . 1 Critical Strikes 1 | . . . . . . . . . . . . 1 Destroy 1 | . . . . . . . . . . . . 1 Melee Attacks . | . . . . . . . . . . . . . Impact . | . . . . . . . . . . . . . Slashing . | . . . . . . . . . . . . . Piercing . | . . . . . . . . . . . . . Sneak Attacks . | . . . . . . . . . . . . . Combat Hostiles . | . . . . . . . . . . . . . Follow-up Attacks . | . . . . . . . . . . . . . Damage Inflicted 1229 | . 87 89 263 . . 606 . . 41 13 . 130 Guns 344 | . 87 55 31 . . . . . 41 . . 130 Cannons 9 | . . 9 . . . . . . . . . . Explosions 858 | . . 25 232 . . 601 . . . . . . Melee . | . . . . . . . . . . . . . Ramming 18 | . . . . . . 5 . . . 13 . . Kinetic 171 | . . . . . . . . . 41 . . 130 Thermal . | . . . . . . . . . . . . . Explosive 858 | . . 25 232 . . 601 . . . . . . Electromagnetic 173 | . 87 55 31 . . . . . . . . . Impact 9 | . . 9 . . . . . . . . . . Slashing . | . . . . . . . . . . . . . Piercing . | . . . . . . . . . . . . . Highest Corruption 6 | . . . . . . . . . . 6 5 5 Average Corruption 3 | . . . . . . . . . . 2 2 5 Corruption Purged . | . . . . . . . . . . . . . Corruption Blocked . | . . . . . . . . . . . . . Effects 8 | . . . . . . . . . . 1 4 3 Message Errors 5 | . . . . . . . . . . . 2 3 Matter Fused 2 | . . . . . . . . . . 1 1 . Energy Discharges 1 | . . . . . . . . . . . 1 . Overload Shots . | . . . . . . . . . . . . . Overflow Damage 36 | . . . . . . 36 . . . . . . Projectiles . | . . . . . . . . . . . . . Explosions 36 | . . . . . . 36 . . . . . . Melee . | . . . . . . . . . . . . . Knockbacks . | . . . . . . . . . . . . . Impact . | . . . . . . . . . . . . . Kinetic . | . . . . . . . . . . . . . Secondary . | . . . . . . . . . . . . . Self-Inflicted Damage 143 | . . 101 34 . . 2 . . . 6 . . Shots 3 | . . 2 1 . . . . . . . . . Rammed 5 | . . . . . . 1 . . . 4 . . Targets Rammed 5 | . . . . . . 1 . . . 4 . . Kicked . | . . . . . . . . . . . . . Crushed . | . . . . . . . . . . . . . Highest Temperature 112 | . 112 17 18 . . 38 . . . . . . Average Temperature 27 | . 45 12 10 . . 12 . . . . . . Received Heat Transfer 467 | . 30 60 40 . . 126 24 12 49 . 48 78 Siege Activations . | . . . . . . . . . . . . . Martial Activations . | . . . . . . . . . . . . . Shielding Activations . | . . . . . . . . . . . . . Robots Disrupted . | . . . . . . . . . . . . . Combat Hostiles . | . . . . . . . . . . . . . Robots Corrupted . | . . . . . . . . . . . . . Combat Hostiles . | . . . . . . . . . . . . . Parts Fried 2 | . 2 . . . . . . . . . . . Impact Corruptions . | . . . . . . . . . . . . . Robots Melted . | . . . . . . . . . . . . . Combat Hostiles . | . . . . . . . . . . . . . Parts Melted . | . . . . . . . . . . . . . Heat Transferred . | . . . . . . . . . . . . . Parts Sabotaged . | . . . . . . . . . . . . . Parts Stolen . | . . . . . . . . . . . . . Parts Stripped . | . . . . . . . . . . . . . Power Chain Reactions . | . . . . . . . . . . . . . Alert | -11 -10 -9 -9 -9 -8 -8 -7 -6 -6 -5 -4 -4 ------- Run | Yrd Mat Mat Min Exi Min Mat Fac Fac Ext Fac Fac Upp Maximum Alert Level . | . . . . . . . . . . . . . Low Security (%) 100 | 100 100 100 100 . 100 100 100 100 100 100 100 . Level 1 . | . . . . . . . . . . . . . Level 2 . | . . . . . . . . . . . . . Level 3 . | . . . . . . . . . . . . . Level 4 . | . . . . . . . . . . . . . Level 5 . | . . . . . . . . . . . . . High Security . | . . . . . . . . . . . . . Max Security . | . . . . . . . . . . . . . Peak Influence 133 | . 7 133 97 . . 80 85 75 94 95 110 . Initial 51 | . . . 51 . . . 27 17 14 34 46 . Average 25 | . . 40 49 . . 28 22 30 33 19 38 . Influence Increases 1502 | . 7 183 106 . . 140 105 124 321 165 261 90 Destroy 0b10 Robot/C 360 | . . 80 60 . . 60 . . 160 . . . Destroy 0b10 Robot/NC 15 | . 5 . 5 . . . . . 5 . . . Destroy Leader 64 | . 2 20 . . . 10 . . 32 . . . Allied During Kill 21 | . . . . . . . . . 21 . . . Successful Hack 48 | . . . . . . . . 4 38 . 6 . Disable Machine 30 | . . 30 . . . . . . . . . . Destroy Structure 124 | . . 38 41 . . 40 . . 5 . . . Partial Spotted 60 | . . 15 . . . . . 30 15 . . . Lose Combat Pursuer 780 | . . . . . . 30 105 90 45 165 255 90 Influence Decreases 1442 | . 7 50 152 87 . 80 128 132 279 141 267 119 Entered New Map 357 | . . . 82 87 . . 33 20 15 37 49 34 Time Decay 841 | . 7 30 60 . . 40 95 112 174 70 178 75 Lost Part 184 | . . 20 10 . . 40 . . 30 34 40 10 Lost Ally 60 | . . . . . . . . . 60 . . . Squads Dispatched 25 | . 2 3 . . . 1 5 3 2 3 6 . Investigation 7 | . 1 2 . . . . 1 . 1 . 2 . Extermination 4 | . . . . . . . 1 1 . . 2 . Reinforcement 14 | . 1 1 . . . 1 3 2 1 3 2 . Assault . | . . . . . . . . . . . . . Garrison . | . . . . . . . . . . . . . Intercept . | . . . . . . . . . . . . . Searches Triggered . | . . . . . . . . . . . . . Construction Impeded 1 | . . . . . . 1 . . . . . . Haulers Reinforced . | . . . . . . . . . . . . . Active Scanning Responses . | . . . . . . . . . . . . . Cargo Convoy Interrupts . | . . . . . . . . . . . . . Stealth | -11 -10 -9 -9 -9 -8 -8 -7 -6 -6 -5 -4 -4 --------- Run | Yrd Mat Mat Min Exi Min Mat Fac Fac Ext Fac Fac Upp Distress Signals 11 | . 1 1 . . . 2 . 1 2 1 3 . Communications Jammed . | . . . . . . . . . . . . . Distress Signals . | . . . . . . . . . . . . . Times Spotted 153 | . 5 9 14 . . 11 14 10 12 33 34 11 Peak Tracking Total 20 | . 3 5 20 . . 7 8 5 5 12 11 9 Tactical Retreats 24 | . . . 1 . . 2 3 2 3 4 7 2 Traps | -11 -10 -9 -9 -9 -8 -8 -7 -6 -6 -5 -4 -4 ------- Run | Yrd Mat Mat Min Exi Min Mat Fac Fac Ext Fac Fac Upp Traps Triggered 9 | . . 2 . . . . 1 . 2 1 3 . Indirectly . | . . . . . . . . . . . . . Trap Hack Attempts . | . . . . . . . . . . . . . Triggered . | . . . . . . . . . . . . . Disarmed . | . . . . . . . . . . . . . Reprogrammed . | . . . . . . . . . . . . . Reused . | . . . . . . . . . . . . . Traps Extracted . | . . . . . . . . . . . . . Installed . | . . . . . . . . . . . . . Triggered . | . . . . . . . . . . . . . Machines | -11 -10 -9 -9 -9 -8 -8 -7 -6 -6 -5 -4 -4 ---------- Run | Yrd Mat Mat Min Exi Min Mat Fac Fac Ext Fac Fac Upp Machines Disabled 2 | . . 2 . . . . . . . . . . Max in Single Turn 2 | . . 2 . . . . . . . . . . Machines Repaired . | . . . . . . . . . . . . . Machines Dismantled . | . . . . . . . . . . . . . Machines Sabotaged . | . . . . . . . . . . . . . Overloaded Fab Kills . | . . . . . . . . . . . . . Hacking | -11 -10 -9 -9 -9 -8 -8 -7 -6 -6 -5 -4 -4 --------- Run | Yrd Mat Mat Min Exi Min Mat Fac Fac Ext Fac Fac Upp Machines Accessed 19 | . 1 . . 5 . . 2 1 7 . 3 . Terminals 11 | . 1 . . . . . . 1 7 . 2 . Fabricators 2 | . . . . . . . 1 . . . 1 . Repair Stations . | . . . . . . . . . . . . . Recycling Units . | . . . . . . . . . . . . . Scanalyzers 1 | . . . . . . . 1 . . . . . Garrison Access . | . . . . . . . . . . . . . Total Hacks 77 | . 2 . . 50 . . 4 1 14 . 6 . Successful 69 | . 2 . . 50 . . 4 1 9 . 3 . Failed 8 | . . . . . . . . . 5 . 3 . Catastrophic 2 | . . . . . . . . . . . 2 . Database Lockouts . | . . . . . . . . . . . . . Manual 5 | . . . . 3 . . . . . . 2 . Terminals 22 | . 2 . . . . . . 1 14 . 5 . Fabricators 3 | . . . . . . . 2 . . . 1 . Repair Stations . | . . . . . . . . . . . . . Recycling Units . | . . . . . . . . . . . . . Scanalyzers 2 | . . . . . . . 2 . . . . . Garrison Access . | . . . . . . . . . . . . . Terminal Hacks 64 | . 2 . . 50 . . . 1 9 . 2 . Record 57 | . 2 . . 49 . . . . 4 . 2 . Open Door 6 | . . . . . . . . 1 5 . . . Proto ID Catalog 1 | . . . . 1 . . . . . . . . Fabricator Hacks 3 | . . . . . . . 2 . . . 1 . Network Status 1 | . . . . . . . . . . . 1 . Load Schematic 1 | . . . . . . . 1 . . . . . Build 1 | . . . . . . . 1 . . . . . Repair Station Hacks . | . . . . . . . . . . . . . Recycling Unit Hacks . | . . . . . . . . . . . . . Scanalyzer 2 | . . . . . . . 2 . . . . . Insert Component 1 | . . . . . . . 1 . . . . . Analyze 1 | . . . . . . . 1 . . . . . Garrison Access Hacks . | . . . . . . . . . . . . . Unauthorized Hacks . | . . . . . . . . . . . . . Terminals . | . . . . . . . . . . . . . Fabricators . | . . . . . . . . . . . . . Repair Stations . | . . . . . . . . . . . . . Recycling Units . | . . . . . . . . . . . . . Scanalyzers . | . . . . . . . . . . . . . Garrison Access . | . . . . . . . . . . . . . Data Cores Recovered . | . . . . . . . . . . . . . Used . | . . . . . . . . . . . . . Hacking Detections 9 | . 1 . . . . . 2 . 4 . 2 . Full Trace Events 4 | . . . . . . . 1 . 1 . 2 . Feedback Events 1 | . . . . . . . . . . . 1 . Corruption 1 | . . . . . . . . . . . 1 . Feedback Blocked . | . . . . . . . . . . . . . Robot Schematics Acquired . | . . . . . . . . . . . . . Robots Built . | . . . . . . . . . . . . . Authchips . | . . . . . . . . . . . . . Time . | . . . . . . . . . . . . . Total Robot Build Rating . | . . . . . . . . . . . . . Part Schematics Acquired 1 | . . . . . . . 1 . . . . . Parts Built . | . . . . . . . . . . . . . Authchips . | . . . . . . . . . . . . . Time 36 | . . . . . . . 36 . . . . . Total Part Build Rating . | . . . . . . . . . . . . . Part Studies Acquired . | . . . . . . . . . . . . . Parts Repaired . | . . . . . . . . . . . . . Time . | . . . . . . . . . . . . . Parts Recycled . | . . . . . . . . . . . . . Recycled Matter . | . . . . . . . . . . . . . Retrieved Matter . | . . . . . . . . . . . . . Retrieved Components . | . . . . . . . . . . . . . Parts Scanalyzed 1 | . . . . . . . 1 . . . . . Part Schematics Acquired 1 | . . . . . . . 1 . . . . . Parts Damaged . | . . . . . . . . . . . . . Bothacking | -11 -10 -9 -9 -9 -8 -8 -7 -6 -6 -5 -4 -4 ------------ Run | Yrd Mat Mat Min Exi Min Mat Fac Fac Ext Fac Fac Upp Used RIF Installer . | . . . . . . . . . . . . . Robots Hacked . | . . . . . . . . . . . . . Non-combat . | . . . . . . . . . . . . . Combat . | . . . . . . . . . . . . . Robot Hacks Applied . | . . . . . . . . . . . . . Relay Couplers Released . | . . . . . . . . . . . . . Fabnet Peak Effective % . | . . . . . . . . . . . . . Robots Rewired . | . . . . . . . . . . . . . Allies Hacked . | . . . . . . . . . . . . . Hacks Repelled . | . . . . . . . . . . . . . Allies | -11 -10 -9 -9 -9 -8 -8 -7 -6 -6 -5 -4 -4 -------- Run | Yrd Mat Mat Min Exi Min Mat Fac Fac Ext Fac Fac Upp Total Allies 7 | . . . . . . . . . 7 . . . Largest Group 5 | . . . . . . . . . 5 . . . Highest-Rated Group 154 | . . . . . . . . . 154 . . . Highest-Rated Ally 39 | . . . . . . . . . 39 . . . Total Orders . | . . . . . . . . . . . . . Ally Attacks 41 | . . . . . . . . . 41 . . . Total Damage 791 | . . . . . . . . . 791 . . . Kills 8 | . . . . . . . . . 8 . . . Allies Corrupted . | . . . . . . . . . . . . . Allies Melted 1 | . . . . . . . . . 1 . . . Intel | -11 -10 -9 -9 -9 -8 -8 -7 -6 -6 -5 -4 -4 ------- Run | Yrd Mat Mat Min Exi Min Mat Fac Fac Ext Fac Fac Upp Active Infowar (turns) 1382 | . . . . . . 43 407 246 376 220 90 . Optics 205 | . . . . . . . . . . 205 . . Sensors 1258 | . . . . . . 43 407 246 376 186 . . Terrain 246 | . . . . . . . . . 246 . . . Cloaking 90 | . . . . . . . . . . . 90 . ECM 2 | . . . . . . . . . . 2 . . Robot Analysis Total . | . . . . . . . . . . . . . Derelict Logs Recovered 2 | . . . 1 . . . . . . . . 1 Drone Launches . | . . . . . . . . . . . . . Drone Recoveries . | . . . . . . . . . . . . . Exploration | -11 -10 -9 -9 -9 -8 -8 -7 -6 -6 -5 -4 -4 ------------- Run | Yrd Mat Mat Min Exi Min Mat Fac Fac Ext Fac Fac Upp Turns Passed 3069 | 49 123 105 131 366 256 161 407 246 376 251 438 160 Spaces Moved 5949 | 38 142 146 187 652 428 257 1108 640 716 582 794 259 Core 460 | 1 . . . . . 31 . . . 136 33 259 Treads . | . . . . . . . . . . . . . Legs . | . . . . . . . . . . . . . Wheels 60 | 37 23 . . . . . . . . . . . Hover 1663 | . 119 146 187 652 428 131 . . . . . . Flight 3766 | . . . . . . 95 1108 640 716 446 761 . Fastest Speed 29 | 50 56 52 56 56 52 35 32 32 29 32 35 50 Average Speed 41 | 87 61 53 56 56 55 45 33 32 30 36 39 50 Slowest Speed 150 | 90 90 56 56 56 56 120 35 32 32 50 100 150 Overloaded Moves . | . . . . . . . . . . . . . Propulsion Burnouts . | . . . . . . . . . . . . . Robots Hopped 38 | . . . . . . . 12 7 9 4 6 . Potential Cave-ins . | . . . . . . . . . . . . . Cave-ins Triggered . | . . . . . . . . . . . . . Exploration Rate (%) 38 | 4 34 23 36 93 82 40 39 26 48 24 21 34 Regions Visited 12 Branch Regions 5 Pre-discovered Areas 1 | . . . . 1 . . . . . . . . Known Exits Taken 1 | . . . . . . . . . 1 . . . Unknown Exits Taken 11 | 1 1 1 1 1 1 1 1 1 . 1 1 . Scrap Searched 2 | . . . . . . . . . . . . 2 Spaces Dug . | . . . . . . . . . . . . . Terrain Destroyed 147 | . . 48 56 . . 38 . . . . . 5 Melee . | . . . . . . . . . . . . . Projectile 5 | . . . . . . . . . . . . 5 AOE 142 | . . 48 56 . . 38 . . . . . . Terrain Rammed . | . . . . . . . . . . . . . Walls Destroyed . | . . . . . . . . . . . . . Machines Disabled . | . . . . . . . . . . . . . Actions | -11 -10 -9 -9 -9 -8 -8 -7 -6 -6 -5 -4 -4 --------- Run | Yrd Mat Mat Min Exi Min Mat Fac Fac Ext Fac Fac Upp Total 6460 | 53 167 163 202 652 445 293 1139 673 862 616 914 281 Wait 311 | . 5 . 4 . 16 11 4 41 119 17 82 12 Move 5861 | 37 141 144 186 651 427 256 1083 625 698 573 781 259 Hop 37 | . . . . . . . 12 7 8 4 6 . Pick Up 54 | 10 8 5 1 1 1 4 8 . 1 6 9 . Fast Attach 8 | . . 2 . . . 3 2 . . . 1 . Attach 41 | 6 1 4 2 . 1 2 3 . 5 7 8 2 Detach 7 | . . . . . . 1 2 . . 3 1 . Swap 5 | . 1 . 1 . . 2 1 . . . . . Drop 29 | . 5 1 1 . . 6 9 . 1 2 4 . Fire 38 | . 6 7 7 . . 7 . . 3 . . 8 Melee . | . . . . . . . . . . . . . Ram 5 | . . . . . . 1 . . . 4 . . Kick . | . . . . . . . . . . . . . Crush . | . . . . . . . . . . . . . Escape Stasis 64 | . . . . . . . 15 . 27 . 22 . Rewire . | . . . . . . . . . . . . . Trap . | . . . . . . . . . . . . . Miscellaneous . | . . . . . . . . . . . . . Route ------- -11/Scrapyard -10/Materials -9/Materials -9/Mines (discovered 2 exits: [*Mat] / *Exi) -9/Exiles (discovered 2 exits: [*Min x2]) -8/Mines (discovered 2 exits: [*Mat x2]) -8/Materials -7/Factory (discovered 3 exits: *Fac x3) -6/Factory (discovered 2 exits: [*Low] / *Ext) -6/Extension -5/Factory (discovered 2 exits: *Fac / *Upp) -4/Factory -4/Upper Caves History --------- Turn | Location | Event 27 | -11/Scrapyard | Discovered new exit (range 16) 50 | -11/Scrapyard | Entered Materials 51 | -10/Materials | Met a group of wandering Federalists 163 | -10/Materials | Discovered new exit (range 16) 173 | -10/Materials | Entered another Materials area 173 | -9/Materials | Evolved 2 slots: Propulsion x1, Utility x1 267 | -9/Materials | Discovered new exit (range 15) 278 | -9/Materials | Entered Mines 279 | -9/Mines | Assembled infested the area 304 | -9/Mines | Received a Rocket Launcher from a helpful Derelict 330 | -9/Mines | Build established: Mutant 391 | -9/Mines | Discovered new exit (range 15) 394 | -9/Mines | Learned Materials emergency access door positions 406 | -9/Mines | Deemed a non-threat by the Exiles lab entrance 406 | -9/Mines | Discovered new exit (range 5) 409 | -9/Mines | Entered Exiles 419 | -9/Exiles | Discovered new exit (range 15) 434 | -9/Exiles | Met 8R-AWN 444 | -9/Exiles | Met EX-HEX 466 | -9/Exiles | Met EX-DEC 511 | -9/Exiles | Visited The Gauntlet 603 | -9/Exiles | Learned location of Zion (-7) 634 | -9/Exiles | Discovered new exit (range 15) 679 | -9/Exiles | Met EX-BIN 686 | -9/Exiles | Aligned with FarCom system 687 | -9/Exiles | Given EX-Vault access code 717 | -9/Exiles | Opened EX-Vault 720 | -9/Exiles | Found Prototype Device 722 | -9/Exiles | Identified Chronowheel 735 | -9/Exiles | Warned to stay clear of 0b10 Research branches 775 | -9/Exiles | Left Exiles lab with Chronowheel 775 | -9/Exiles | Entered Mines 1015 | -8/Mines | Discovered new exit (range 7) 1019 | -8/Mines | Discovered new exit (range 8) 1031 | -8/Mines | Entered Materials 1031 | -8/Materials | Evolved 2 slots: Utility x2 1165 | -8/Materials | Lost 4 parts (3n1w) 1178 | -8/Materials | Discovered new exit (range 16) 1192 | -8/Materials | Entered Factory 1192 | -7/Factory | Evolved 2 slots: Power x1, Propulsion x1 1440 | -7/Factory | Build established: Scout 1441 | -7/Factory | Discovered new exit (range 15) 1539 | -7/Factory | Discovered new exit (range 11) 1591 | -7/Factory | Discovered new exit (range 16) 1599 | -7/Factory | Entered another Factory area 1599 | -6/Factory | Evolved 2 slots: Utility x2 1780 | -6/Factory | Discovered new exit (range 10) 1792 | -6/Factory | Discovered new exit (range 5) 1845 | -6/Factory | Entered Extension 1870 | -6/Extension | Rescued a captive Derelict 1894 | -6/Extension | Rescued a captive Derelict 1899 | -6/Extension | Rescued a captive Derelict 1953 | -6/Extension | Rescued a captive Derelict 1957 | -6/Extension | Rescued a captive Derelict 2040 | -6/Extension | Rescued a captive Derelict 2040 | -6/Extension | Rescued a captive Derelict 2121 | -6/Extension | Spotted B-75 Beast 2180 | -6/Extension | Lost 3 parts (1n2u) 2215 | -6/Extension | Spotted B-75 Beast 2220 | -6/Extension | Discovered new exit (range 3) 2220 | -6/Extension | Identified exit to Factory 2221 | -6/Extension | Entered Factory 2221 | -5/Factory | Evolved 2 slots: Utility x2 2266 | -5/Factory | Discovered new exit (range 7) 2268 | -5/Factory | Identified exit to Upper Caves 2419 | -5/Factory | Core integrity fell below 50% 2440 | -5/Factory | Discovered new exit (range 16) 2452 | -5/Factory | Core integrity fell below 20% 2472 | -5/Factory | Entered another Factory area 2472 | -4/Factory | Evolved 2 slots: Propulsion x1, Utility x1 2713 | -4/Factory | Build established: Mutant 2898 | -4/Factory | Core integrity fell below 50% 2902 | -4/Factory | Discovered new exit (range 16) 2910 | -4/Factory | Entered Upper Caves 2916 | -4/Upper Caves | Learned 4 Research zone layouts 3001 | -4/Upper Caves | Attracted the attention of an 0b10 outpost 3016 | -4/Upper Caves | Core integrity fell below 20% 3070 | -4/Upper Caves | Destroyed by G-67 Veteran with Field Laser Last Messages --------------- 02943_ M-30 Cleanser extracts Dirty Bomb Trap. 02951_ M-30 Cleanser extracts Fire Trap. 02952_ M-30 Cleanser reprogrammed Dirty Bomb Trap. 02954_ M-30 Cleanser extracts Dirty Bomb Trap. 02962_ &BYOOPJ%I#|KH8B 03001_ Y-72 Warden: "DETECTED UNIDENTIFIED DERELICT." 03003_ Penetrated by Slug. 03005_ Y-72 Warden: "REQUESTING BACKUP." 03018_ EIOEQJJ5W 03055_ Slug penetrates Earth. 03059_ Adv. Cryofiber Web destroyed. 03061_ G-67 Veteran suffers critical hit (Destroy). 03061_ Destroyed Plasma Rifle. 03063_ Slug penetrates G-67 Veteran. 03067_ Slug penetrates Wall. Map ----- +----------------------------------------------------+ | ?????????????????????????????????????????????????? | | ?????????????????????????????????????????????????? | | ?????????????????????????????????????????????????? | | ?????????????????????????????????????????????????? | | ?????????????????????????????????????????????????? | | ?????????????????????????????????????????????????? | | ?????????????????????????????????????????????????? | | ?????????????????????????????????????????????????? | | ?????????????????????????????????????????????????? | | ?????????????????????????????????????????????????? | | ?????????????????????????????????????????????????? | | ?????????????????????????????????????????????????? | | ?????????????????????????????????????????????????? | | ?????????????????????????????????????????????????? | | ?????????????????????????????????????????????????? | | ???? ???????????????????????????????????????????? | | ????# ?????????????????????????????????????????? | | ?????? ######?????????????????????????????????? | | ???????? #????????????????????????????????? | | ??????????? ##??????????????????????????????? | | ?????????????# ##?????????????????????????????? | | ????##??????## # ##????????????????????????????? | | ???? #?????## # # ###??????????????????????????? | | ??? #?????# ######?????????????????????? | | ??? #?##??## # # #?????????????????????? | | ### # ??????# g @ #?????????????????????? | | ????????## g ##?????????????????????? | | ?????????#; Y ;# ###??????????????????????? | | ??????????### #####????????????????????????? | | #????##???????## #???????????????????????????? | | #???## ###??????# ##???????????????????????????? | | #???# #??????# #???????# ???????????????????? | | ##?? #????### #?? ???# ?????????????????? | | #?? #????# #?? ### ???????????????? | | ##?# ##???# ###?? ???????????????? | | ### ##### #???? ??????????????? | | ## # #????# ???????????????? | | ## #????# ????????????????? | | ### #####????# ??????????????????? | | ## ##?# ##???????# #???????????????????? | | ## ####! ###????## #????????????????????? | | ] "#??### #?????????????????????? | | ####### ####"# #?????????????????????? | | #??""# #??????????????????????? | | #?? # #########????? #???????? | | # #### #???? ##??????? | | # ##?## ##?? ??????? | | #" # "#?# #?? ??????? | | #""""# #??### #### ## ?????? | | ####### ###??####??# ?????? | +----------------------------------------------------+ Best States ------------- Heat Dissipation 43 Energy Generation 25 Energy Capacity 200 Matter Stores 300 Matter Capacity 300 Sight Range 22 Robot Scan Range 15 Terrain Scan Range 16 Terrain Scan Density 210 Cloak Strength 3 Additional Mass Support 6 Armor Coverage 150 Propulsion Shielding 66 Evasion (%) 75 Targeting Accuracy 14 Item Schematics ----------------- Imp. Terrain Scanner | -7/Factory | Scanalyzed Robot Schematics ------------------ None Fabricated ------------ Nothing Repaired ---------- Nothing Studied --------- None Alien Tech Used ----------------- None Achievements -------------- DATA ERROR: Steam Global Achievement% For Emergencies Only Heavy Suspicion Organ Harvest Overwhelming Resistances Are Futile Sixth Sense Spot Them First Streaker That Tickles There's More Where That Came From Challenges ------------ None Game ------ Seed ChainConcussiveCleaver Manual? 0 Play Time 01:16:40 Cumulative 127.8 hours Start 2025.11.09 @ 20:50:09 End 2025.11.12 @ 20:01:53 Sessions 3 Manual Loads 0 Difficulty Rogue Special Mode None Game No. 79 Rogue 79 Adventurer 0 Explorer 0 Win Type - Total 2 Types 0/0/0/2/0/0/0/0/0/0 Lore% 23 Gallery% 45 Achievement% 26 Wizard Run 0 Options --------- Layout 1 ASCII 0 Keyboard 0 Movement Numpad Keybinds 0 Fullscreen 1 Font 24/Smallcaps Map View 50x40 Zoom Use 0% Tactical HUD 1 Map Filters NONE Filters NONE Steam 1 RUN: 5d3c050d-e58f-486a-9f78-074bd307819d